fUSD/lending_fUSD_20251221
["ID","MTS","AMOUNT","RATE_DAILY","PERIOD"]
[399366954,1766319470204,199.0,0.00034246,30]
[399366955,1766319470591,199.0,0.00034931,31]
[399366956,1766319470823,218.34694988,0.00035616,32]
[399366958,1766319488444,151.0,0.00032876,31]
[399366981,1766319538903,1115.12,0.00032876,120]
[399366982,1766319539149,1115.12,0.00033972,120]
[399366983,1766319539386,1115.12,0.00035068,120]
[399367055,1766319661394,321.0,0.00033151,30]
[399367056,1766319661709,321.0,0.00034521,30]
[399367059,1766319666333,280.50505469,0.00034353,31]
[399367134,1766319727980,354.7280392,0.00035616,30]
[399367140,1766319768484,999.0,0.00032876,120]
[399367141,1766319768727,999.0,0.00033972,120]
[399367142,1766319768974,999.0,0.00035068,120]
[399367179,1766319959514,301.07508542,8e-05,2]
[399367185,1766320019165,999.0,0.00032876,120]
[399367186,1766320019428,999.0,0.00033972,120]
[399367187,1766320019662,999.0,0.00035068,120]
[399367193,1766320070035,500.0,0.00012023,4]
[399367194,1766320070273,500.0,0.00012023,5]
[399367195,1766320076673,500.0,0.00035616,30]
[399367196,1766320080896,500.0,0.00035616,30]
[399367212,1766320140545,1000.0,0.00035615,30]
[399367213,1766320141097,1000.0,0.00035615,30]
[399367214,1766320141349,1000.0,0.00035615,30]
[399367215,1766320141584,1000.0,0.00035099,30]
[399367352,1766320231931,-210.15865064,0.00011805,2]
[399367353,1766320231942,-151.0,0.00011821,2]
[399367354,1766320231951,-300.0,0.00011822,2]
[399367355,1766320231960,-300.0,0.00011822,2]
[399367356,1766320231969,-1200.0,0.00011822,2]
[399367357,1766320231979,-150.0,0.00011822,2]
[399367358,1766320231989,-623.78473681,0.00011823,2]
[399367359,1766320231998,-500.0,0.00011823,2]
[399367360,1766320232007,-292.62872881,0.00011823,2]
[399367361,1766320232016,-500.0,0.00011823,2]
[399367362,1766320232025,-500.0,0.00011823,2]
[399367363,1766320232035,-500.0,0.00011823,2]
[399367364,1766320232044,-500.0,0.00011823,2]
[399367365,1766320232053,-500.0,0.00011823,2]
[399367366,1766320232062,-500.0,0.00011823,2]
[399367367,1766320232072,-500.0,0.00011823,2]
[399367368,1766320232081,-500.0,0.00011823,2]
[399367369,1766320232090,-500.0,0.00011823,2]
[399367370,1766320232100,-500.0,0.00011823,2]
[399367371,1766320232109,-500.0,0.00011823,2]
[399367372,1766320232118,-500.0,0.00011823,2]
[399367373,1766320232127,-500.0,0.00011823,2]
[399367374,1766320232136,-500.0,0.00011823,2]
[399367375,1766320232145,-500.0,0.00011823,2]
[399367376,1766320232155,-500.0,0.00011823,2]
[399367377,1766320232164,-500.0,0.00011823,2]
[399367378,1766320232173,-500.0,0.00011823,2]
[399367379,1766320232182,-500.0,0.00011823,2]
[399367380,1766320232191,-500.0,0.00011823,2]
[399367381,1766320232201,-500.0,0.00011823,2]
[399367383,1766320232211,-500.0,0.00011823,2]
[399367384,1766320232220,-500.0,0.00011823,2]
[399367385,1766320232229,-500.0,0.00011823,2]
[399367386,1766320232238,-506.52522439,0.00011823,2]
[399367387,1766320232247,-500.0,0.00011823,2]
[399367388,1766320232256,-500.0,0.00011823,2]
[399367389,1766320232266,-500.0,0.00011823,2]
[399367390,1766320232275,-500.0,0.00011823,2]
[399367391,1766320232284,-187.60130889,0.00011823,2]
[399367392,1766320232295,-312.39869111,0.00011823,2]
[399367393,1766320232304,-500.0,0.00011823,2]
[399367394,1766320232314,-500.0,0.00011823,2]
[399367395,1766320232323,-500.0,0.00011823,2]
[399367396,1766320232333,-500.0,0.00011823,2]
[399367397,1766320232342,-151.27234085,0.00011823,2]
[399367398,1766320232355,-532.36135785,0.00011823,2]
[399367399,1766320232365,-154.28181073,0.00011823,2]
[399367400,1766320232375,-500.0,0.00011823,2]
[399367401,1766320232384,-600.0,0.00011823,2]
[399367402,1766320232394,-500.0,0.00011823,2]
[399367403,1766320232404,-500.0,0.00011823,2]
[399367404,1766320232414,-500.0,0.00011823,2]
[399367405,1766320232423,-500.0,0.00011823,2]
[399367406,1766320232433,-500.0,0.00011823,2]
[399367407,1766320232443,-11008.37701297,0.00011824,2]
[399367421,1766320237854,-44463.5,0.00011824,2]
[399367422,1766320237866,-944528.12298703,0.00011824,2]
[399367423,1766320237876,-500.0,0.00011905,2]
[399367424,1766320237886,-250.0,0.00011905,2]
[399367425,1766320237896,-1200.0,0.00011923,2]
[399367426,1766320237906,-4038.28541477,0.00011924,2]
[399367427,1766320237915,-4097.5322,0.00011924,2]
[399367428,1766320237924,-6616.0668,0.00011924,2]
[399367429,1766320237934,-2500.0,0.00011924,2]
[399367430,1766320237943,-500.0,0.00011924,2]
[399367431,1766320237952,-7490.33835131,0.0001197,2]
[399367432,1766320237962,-7158.31889227,0.0001197,2]
[399367433,1766320237971,-151.0,0.00012017,2]
[399367434,1766320237980,-151.0,0.00012017,2]
[399367435,1766320237990,-151.0,0.00012017,2]
[399367436,1766320237999,-151.0,0.00012017,2]
[399367437,1766320238008,-151.0,0.00012017,2]
[399367438,1766320238018,-151.0,0.00012017,2]
[399367439,1766320238027,-151.0,0.00012017,2]
[399367440,1766320238037,-229.55899269,0.00012017,2]
[399367441,1766320238046,-211.05556338,0.00012023,2]
[399367442,1766320238056,-221.43334789,0.00012023,3]
[399367443,1766320238066,-1082.95395428,0.00012023,3]
[399367444,1766320238075,-1508.61,0.00012023,2]
[399367445,1766320238086,-500.0,0.00012023,2]
[399367446,1766320238095,-500.0,0.00012023,3]
[399367447,1766320238105,-1589.23879842,0.00012024,2]
[399367448,1766320238114,-11501.04,0.0001207,2]
[399367449,1766320238124,-33486.8341,0.00012124,2]
[399367450,1766320238134,-1000.0,0.00012124,2]
[399367451,1766320238144,-500.0,0.00012198,2]
[399367453,1766320238154,-166.67,0.00012262,2]
[399367454,1766320238163,-1508.61,0.00012297,2]
[399367456,1766320238173,-500.0,0.00012472,2]
[399367458,1766320238183,-7490.33835125,0.00012518,2]
[399367460,1766320238192,-7158.31889223,0.00012518,2]
[399367462,1766320238202,-1508.61,0.00012571,2]
[399367464,1766320238211,-38191.82048884,0.00012729,2]
[399367466,1766320238221,-235.71154484,0.00012746,2]
[399367468,1766320238231,-1508.61,0.00012845,2]
[399367470,1766320238240,-255.0,0.00012898,2]
[399367472,1766320238250,-420.0,0.0001298,2]
[399367474,1766320238260,-506.99804372,0.0001298,2]
[399367476,1766320238269,-193.0,0.00012986,2]
[399367479,1766320238279,-250.0,0.00012986,2]
[399367482,1766320238288,-195.0,0.00012986,2]
[399367484,1766320238298,-60814.35216523,0.0001299,2]
[399367486,1766320238308,-1680.0,0.00013004,2]
[399367488,1766320238317,-1589.23879841,0.0001302,2]
[399367490,1766320238327,-7490.33835125,0.00013066,2]
[399367492,1766320238336,-7158.31889223,0.00013066,2]
[399367494,1766320238347,-300.0,0.00013095,2]
[399367496,1766320238357,-250.0,0.00013095,2]
[399367498,1766320238367,-300.0,0.00013095,2]
[399367500,1766320238376,-269.07888675,0.00013095,2]
[399367502,1766320238386,-195.0,0.00013095,2]
[399367504,1766320238396,-1508.61,0.00013119,2]
[399367506,1766320238406,-151.0,0.0001327,2]
[399367508,1766320238415,-501.13880069,0.00013273,2]
[399367510,1766320238425,-169.30599703,0.00013273,2]
[399367512,1766320238434,-500.0,0.00013273,2]
[399367514,1766320238444,-235.5477362,0.00013273,2]
[399367516,1766320238453,-172.78810174,0.00013273,2]
[399367517,1766320238463,-165.55250469,0.00013273,2]
[399367519,1766320238472,-500.28275711,0.00013273,2]
[399367521,1766320238483,-500.0,0.00013273,2]
[399367523,1766320238492,-163.74041745,0.00013273,2]
[399367524,1766320238502,-172.62322663,0.00013273,2]
[399367525,1766320238512,-166.07222089,0.00013273,2]
[399367526,1766320238522,-500.0,0.00013273,2]
[399367527,1766320238532,-500.0,0.00013273,2]
[399367528,1766320238541,-500.0,0.00013273,2]
[399367529,1766320238550,-224.07561459,0.00013273,2]
[399367530,1766320238560,-500.0,0.00013273,2]
[399367531,1766320238570,-176.68955298,0.00013273,2]
[399367532,1766320238579,-174.7668322,0.00013273,2]
[399367533,1766320238589,-163.12595914,0.00013273,2]
[399367534,1766320238599,-500.0,0.00013273,2]
[399367535,1766320238609,-500.0,0.00013273,2]
[399367536,1766320238619,-165.33365869,0.00013273,2]
[399367537,1766320238629,-500.0,0.00013273,2]
[399367539,1766320238638,-179.52644703,0.00013273,2]
[399367540,1766320238648,-165.81830667,0.00013273,2]
[399367541,1766320238658,-536.20400277,0.00013273,2]
[399367542,1766320238668,-535.80488435,0.00013273,2]
[399367543,1766320238677,-500.0,0.00013273,2]
[399367544,1766320238686,-500.0,0.00013273,2]
[399367545,1766320238696,-162.06342056,0.00013273,2]
[399367546,1766320238705,-500.0,0.00013273,2]
[399367547,1766320238715,-168.62041939,0.00013273,2]
[399367548,1766320238725,-500.0,0.00013273,2]
[399367549,1766320238734,-500.0,0.00013273,2]
[399367550,1766320238743,-500.0,0.00013273,2]
[399367551,1766320238752,-500.0,0.00013273,2]
[399367552,1766320238762,-160.24966058,0.00013273,2]
[399367553,1766320238772,-201.68060624,0.00013273,2]
[399367554,1766320238781,-500.0,0.00013273,2]
[399367555,1766320238790,-500.0,0.00013273,2]
[399367556,1766320238800,-500.0,0.00013273,2]
[399367557,1766320238810,-165.47156837,0.00013273,2]
[399367558,1766320238819,-500.0,0.00013273,2]
[399367559,1766320238828,-216.30072536,0.00013273,2]
[399367560,1766320238837,-500.0,0.00013273,2]
[399367561,1766320238847,-500.0,0.00013273,2]
[399367562,1766320238856,-500.0,0.00013273,2]
[399367563,1766320238865,-500.0,0.00013273,2]
[399367564,1766320238875,-500.0,0.00013273,2]
[399367565,1766320238884,-276.49556074,0.00013273,2]
[399367566,1766320238894,-162.88863399,0.00013273,2]
[399367567,1766320238904,-515.90612576,0.00013273,2]
[399367568,1766320238913,-500.0,0.00013273,2]
[399367569,1766320238923,-166.67,0.00013274,2]
[399367570,1766320238932,-731.84096735,0.00013379,2]
[399367571,1766320238942,-1508.61,0.00013393,2]
[399367572,1766320238951,-1000.0,0.000135,2]
[399367573,1766320238961,-500.0,0.00013534,2]
[399367574,1766320238971,-196.74,0.00013603,2]
[399367575,1766320238981,-7490.33835125,0.00013613,2]
[399367576,1766320238990,-7158.31889223,0.00013613,2]
[399367577,1766320238999,-209.6,0.00013614,2]
[399367578,1766320239009,-227.6,0.0001364,2]
[399367579,1766320239018,-1508.61,0.00013667,2]
[399367580,1766320239028,-261.824715,0.00013673,2]
[399367581,1766320239038,-500.0,0.00013697,6]
[399367582,1766320239047,-500.0,0.00013698,2]
[399367583,1766320239056,-500.0,0.00013698,2]
[399367584,1766320239066,-500.0,0.00013698,2]
[399367585,1766320239075,-500.0,0.00013698,2]
[399367586,1766320239084,-500.0,0.00013698,2]
[399367587,1766320239093,-500.0,0.00013698,2]
[399367588,1766320239103,-500.0,0.00013698,2]
[399367589,1766320239111,-500.0,0.00013698,2]
[399367590,1766320239121,-500.0,0.00013698,2]
[399367591,1766320239130,-500.0,0.00013698,2]
[399367592,1766320239140,-500.0,0.00013698,2]
[399367593,1766320239149,-500.0,0.00013698,2]
[399367594,1766320239159,-500.0,0.00013698,2]
[399367595,1766320239168,-500.0,0.00013698,2]
[399367596,1766320239177,-500.0,0.00013698,2]
[399367597,1766320239187,-500.0,0.00013698,2]
[399367598,1766320239197,-500.0,0.00013698,2]
[399367599,1766320239206,-500.0,0.00013698,2]
[399367600,1766320239216,-500.0,0.00013698,2]
[399367601,1766320239225,-500.0,0.00013698,2]
[399367602,1766320239235,-500.0,0.00013698,2]
[399367603,1766320239244,-500.0,0.00013698,2]
[399367604,1766320239253,-500.0,0.00013698,2]
[399367605,1766320239262,-500.0,0.00013698,2]
[399367606,1766320239272,-500.0,0.00013698,2]
[399367607,1766320239281,-500.0,0.00013698,2]
[399367608,1766320239291,-500.0,0.00013698,2]
[399367609,1766320239300,-500.0,0.00013698,2]
[399367610,1766320239310,-500.0,0.00013698,2]
[399367611,1766320239319,-500.0,0.00013698,2]
[399367612,1766320239328,-500.0,0.00013698,2]
[399367613,1766320239337,-500.0,0.00013698,2]
[399367614,1766320239347,-500.0,0.00013698,2]
[399367615,1766320239359,-150.0,0.00013699,2]
[399367616,1766320239368,-1000.0,0.00013699,2]
[399367617,1766320239378,-196.43,0.00013699,2]
[399367618,1766320239387,-200.0,0.00013699,2]
[399367619,1766320239399,-500.0,0.00013699,2]
[399367620,1766320239408,-500.0,0.00013699,2]
[399367621,1766320239419,-500.0,0.00013699,2]
[399367622,1766320239428,-500.0,0.00013699,2]
[399367623,1766320239437,-500.0,0.00013699,2]
[399367624,1766320239446,-500.0,0.00013699,2]
[399367625,1766320239456,-500.0,0.00013699,2]
[399367626,1766320239465,-500.0,0.00013699,2]
[399367627,1766320239474,-500.0,0.00013699,2]
[399367628,1766320239484,-500.0,0.00013699,2]
[399367629,1766320239493,-500.0,0.00013699,2]
[399367630,1766320239502,-500.0,0.00013699,2]
[399367631,1766320239512,-500.0,0.00013699,2]
[399367632,1766320239521,-500.0,0.00013699,2]
[399367633,1766320239531,-500.0,0.00013699,2]
[399367634,1766320239541,-500.0,0.00013699,2]
[399367635,1766320239550,-500.0,0.00013699,2]
[399367636,1766320239560,-500.0,0.00013699,2]
[399367637,1766320239569,-500.0,0.00013699,2]
[399367638,1766320239579,-500.0,0.00013699,2]
[399367639,1766320239588,-500.0,0.00013699,2]
[399367640,1766320239597,-500.0,0.00013699,2]
[399367641,1766320239607,-500.0,0.00013699,2]
[399367642,1766320239616,-500.0,0.00013699,2]
[399367643,1766320239625,-500.0,0.00013699,2]
[399367644,1766320239634,-500.0,0.00013699,2]
[399367645,1766320239644,-396.03112521,0.00013699,2]
[399367646,1766320239653,-500.0,0.00013699,2]
[399367647,1766320239662,-500.0,0.00013699,2]
[399367648,1766320239671,-500.0,0.00013699,2]
[399367649,1766320239680,-500.0,0.00013699,2]
[399367650,1766320239689,-500.0,0.00013699,2]
[399367651,1766320239699,-500.0,0.00013699,2]
[399367652,1766320239709,-500.0,0.00013699,2]
[399367653,1766320239719,-264.93246006,0.00013699,2]
[399367654,1766320239728,-500.0,0.00013699,2]
[399367655,1766320239738,-500.0,0.00013699,2]
[399367656,1766320239747,-500.0,0.00013699,2]
[399367657,1766320239756,-500.0,0.00013699,2]
[399367658,1766320239765,-500.0,0.00013699,2]
[399367659,1766320239774,-500.0,0.00013699,2]
[399367660,1766320239784,-500.0,0.00013699,2]
[399367661,1766320239793,-1475.70857552,0.00013705,2]
[399367662,1766320239802,-501.0380524,0.00013821,2]
[399367664,1766320239811,-572.75082077,0.00013821,2]
[399367665,1766320239820,-1000.0,0.00013821,2]
[399367666,1766320239829,-1001.62490087,0.00013821,2]
[399367667,1766320239838,-1001.10835573,0.00013821,2]
[399367668,1766320239849,-535.22474582,0.00013821,2]
[399367669,1766320239859,-1000.0,0.00013821,2]
[399367670,1766320239869,-208.16009032,0.00013821,2]
[399367671,1766320239879,-1000.0,0.00013821,2]
[399367672,1766320239888,-1000.0,0.00013821,2]
[399367673,1766320239897,-235.55154497,0.00013821,2]
[399367674,1766320239906,-1000.0,0.00013821,2]
[399367675,1766320239915,-1000.0,0.00013821,2]
[399367676,1766320239923,-1000.0,0.00013821,2]
[399367677,1766320239932,-1000.0,0.00013821,2]
[399367678,1766320239941,-1000.0,0.00013821,2]
[399367679,1766320239950,-1000.0,0.00013821,2]
[399367680,1766320239959,-789.33467407,0.00013821,2]
[399367681,1766320239968,-1000.0,0.00013821,2]
[399367682,1766320239977,-514.63903632,0.00013821,2]
[399367683,1766320239987,-484.06013596,0.00013821,2]
[399367684,1766320239998,-453.53849539,0.00013821,2]
[399367685,1766320240008,-1000.0,0.00013821,2]
[399367686,1766320240018,-1000.0,0.00013821,2]
[399367687,1766320240030,-1000.0,0.00013821,2]
[399367689,1766320240042,-594.78120498,0.00013821,2]
[399367692,1766320240062,-1508.61,0.00013941,2]
[399367694,1766320240072,-210.15865064,0.00013983,2]
[399367695,1766320240081,-250.0,0.00014,2]
[399367697,1766320240091,-1589.23879841,0.00014016,2]
[399367699,1766320240100,-14138.48,0.00014062,2]
[399367701,1766320240109,-433.0,0.00014068,2]
[399367704,1766320240119,-731.84096735,0.00014083,2]
[399367705,1766320240128,-1600.0,0.00014158,2]
[399367707,1766320240137,-7490.33835125,0.00014161,2]
[399367709,1766320240146,-7158.31889223,0.00014161,2]
[399367711,1766320240162,-335.74941058,0.00014175,2]
[399367713,1766320240184,-1508.61,0.00014215,2]
[399367714,1766320240194,-587.0,0.00014252,2]
[399367715,1766320240203,-166.67,0.00014286,2]
[399367716,1766320240213,-2351.0,0.00014305,2]
[399367717,1766320240223,-581.17593676,0.00014311,2]
[399367718,1766320240234,-1500.0,0.00014368,2]
[399367719,1766320240245,-1500.0,0.00014368,2]
[399367720,1766320240255,-366.15226393,0.00014368,2]
[399367721,1766320240265,-644.26340267,0.00014368,2]
[399367722,1766320240275,-1500.0,0.00014368,2]
[399367723,1766320240285,-1504.443568,0.00014368,2]
[399367725,1766320240294,-1500.0,0.00014368,2]
[399367726,1766320240303,-1500.0,0.00014368,2]
[399367727,1766320240312,-1500.0,0.00014368,2]
[399367728,1766320240322,-1211.67995912,0.00014368,2]
[399367729,1766320240332,-503.74441146,0.00014368,2]
[399367730,1766320240341,-1500.0,0.00014368,2]
[399367731,1766320240357,-1500.0,0.00014368,2]
[399367732,1766320240368,-1501.58945381,0.00014368,2]
[399367733,1766320240378,-1508.61,0.00014488,2]
[399367734,1766320240387,-11877.2,0.00014504,2]
[399367735,1766320240407,-9999.99,0.00014504,2]
[399367736,1766320240419,-151.0,0.00014555,2]
[399367737,1766320240429,-151.0,0.00014563,2]
[399367738,1766320240439,-7490.33835125,0.00014709,2]
[399367739,1766320240449,-7158.31889223,0.00014709,2]
[399367740,1766320240460,-1508.61,0.00014762,2]
[399367741,1766320240471,-731.84096735,0.00014787,2]
[399367742,1766320240481,-205.35321334,0.000149,2]
[399367743,1766320240490,-2000.0,0.00014916,2]
[399367744,1766320240500,-1138.30499273,0.00014916,2]
[399367745,1766320240510,-1834.49283525,0.00014916,2]
[399367746,1766320240519,-2000.0,0.00014916,2]
[399367747,1766320240529,-2000.0,0.00014916,2]
[399367748,1766320240538,-503.75804982,0.00014916,2]
[399367750,1766320240547,-2000.0,0.00014916,2]
[399367751,1766320240557,-502.34827947,0.00014916,2]
[399367752,1766320240566,-250.0,0.00015,2]
[399367753,1766320240576,-1154.75497368,0.00015,2]
[399367754,1766320240586,-13730.75410372,0.00015,2]
[399367755,1766320240596,-1589.23879841,0.00015012,2]
[399367756,1766320240606,-200.0,0.00015032,2]
[399367757,1766320240615,-207.4,0.00015032,2]
[399367758,1766320240624,-215.0738,0.00015032,2]
[399367759,1766320240634,-223.0315306,0.00015032,2]
[399367760,1766320240643,-231.28369723,0.00015032,2]
[399367761,1766320240652,-239.84119403,0.00015032,2]
[399367762,1766320240661,-248.71531821,0.00015032,2]
[399367763,1766320240670,-257.91778498,0.00015032,2]
[399367764,1766320240680,-267.46074303,0.00015032,2]
[399367765,1766320240689,-300.0,0.00015032,2]
[399367766,1766320240699,-1508.61,0.00015036,2]
[399367767,1766320240709,-500.0,0.0001522,2]
[399367768,1766320240720,-7490.33835125,0.00015257,2]
[399367769,1766320240731,-7158.31889223,0.00015257,2]
[399367770,1766320240742,-150.0,0.00015288,2]
[399367771,1766320240752,-150.0,0.00015288,2]
[399367772,1766320240761,-150.0,0.00015288,2]
[399367773,1766320240770,-150.0,0.00015288,2]
[399367774,1766320240780,-151.28381653,0.00015288,2]
[399367775,1766320240791,-150.0,0.00015288,2]
[399367776,1766320240801,-150.0,0.00015288,2]
[399367777,1766320240810,-150.0,0.00015288,2]
[399367778,1766320240821,-150.0,0.00015288,2]
[399367779,1766320240830,-150.0,0.00015288,2]
[399367780,1766320240840,-150.00000001,0.00015288,2]
[399367781,1766320240850,-150.0,0.00015288,2]
[399367782,1766320240860,-150.0,0.00015288,2]
[399367783,1766320240871,-150.0,0.00015288,2]
[399367784,1766320240881,-150.89972091,0.00015288,2]
[399367785,1766320240891,-150.0,0.00015288,2]
[399367786,1766320240901,-150.0,0.00015288,2]
[399367787,1766320240911,-1508.61,0.0001531,2]
[399367788,1766320240920,-299.99,0.0001531,2]
[399367789,1766320240931,-150.99,0.0001531,2]
[399367790,1766320240945,-379.03,0.0001531,2]
[399367791,1766320240955,-150.0,0.00015339,2]
[399367792,1766320240967,-150.0,0.00015344,2]
[399367793,1766320240978,-150.0,0.00015356,2]
[399367794,1766320240987,-736.0,0.00015357,2]
[399367795,1766320241355,-150.0,0.00015391,2]
[399367796,1766320241367,-150.0,0.00015394,2]
[399367797,1766320241377,-150.0,0.00015401,2]
[399367798,1766320241391,-150.0,0.00015401,2]
[399367799,1766320241402,-150.0,0.00015409,2]
[399367800,1766320241411,-150.0,0.00015424,2]
[399367801,1766320241422,-150.0,0.00015442,2]
[399367802,1766320241432,-150.0,0.00015458,2]
[399367803,1766320241443,-2500.0,0.00015464,2]
[399367804,1766320241452,-2500.0,0.00015464,2]
[399367805,1766320241462,-2500.0,0.00015464,2]
[399367806,1766320241471,-1057.65481763,0.00015464,2]
[399367807,1766320241481,-731.84096735,0.00015491,2]
[399367808,1766320241491,-150.0,0.00015492,2]
[399367809,1766320241500,-150.0,0.00015494,2]
[399367810,1766320241509,-150.0,0.000155,2]
[399367811,1766320241520,-150.0,0.00015514,2]
[399367812,1766320241529,-150.0,0.00015514,2]
[399367813,1766320241539,-150.0,0.0001553,2]
[399367814,1766320241548,-150.0,0.00015545,2]
[399367815,1766320241557,-150.0,0.00015559,2]
[399367816,1766320241566,-150.0,0.00015571,2]
[399367817,1766320241577,-1508.61,0.00015584,2]
[399367818,1766320241587,-150.0,0.00015597,2]
[399367819,1766320241596,-150.0,0.00015606,2]
[399367820,1766320241605,-150.0,0.00015627,2]
[399367821,1766320241614,-150.0,0.00015627,2]
[399367822,1766320241623,-150.0,0.00015627,2]
[399367823,1766320241633,-150.0,0.00015627,2]
[399367824,1766320241642,-150.0,0.00015648,2]
[399367825,1766320241651,-589.0,0.00015649,2]
[399367826,1766320241661,-150.0,0.00015652,2]
[399367827,1766320241670,-150.0,0.00015684,2]
[399367828,1766320241679,-150.0,0.00015695,2]
[399367829,1766320241688,-150.0,0.00015699,2]
[399367830,1766320241697,-150.0,0.00015712,2]
[399367831,1766320241706,-150.0,0.00015712,2]
[399367832,1766320241716,-150.0,0.00015712,2]
[399367833,1766320241725,-3292.0,0.00015735,2]
[399367834,1766320241734,-150.0,0.00015741,2]
[399367835,1766320241743,-150.0,0.00015741,2]
[399367836,1766320241751,-150.0,0.00015751,2]
[399367837,1766320241762,-150.0,0.00015763,2]
[399367838,1766320241771,-150.0,0.00015773,2]
[399367839,1766320241780,-150.0,0.00015797,2]
[399367840,1766320241789,-150.0,0.00015802,2]
[399367841,1766320241798,-7490.33835125,0.00015804,2]
[399367842,1766320241807,-7158.31889223,0.00015804,2]
[399367843,1766320241817,-150.0,0.00015818,2]
[399367844,1766320241826,-150.0,0.00015831,2]
[399367845,1766320241835,-150.0,0.00015854,2]
[399367846,1766320241845,-150.0,0.00015854,2]
[399367847,1766320241854,-150.0,0.00015854,2]
[399367848,1766320241863,-1508.61,0.00015858,2]
[399367849,1766320241873,-196.74,0.00015892,2]
[399367850,1766320241882,-150.0,0.00015894,2]
[399367851,1766320241891,-150.0,0.00015899,2]
[399367852,1766320241901,-150.0,0.00015905,2]
[399367853,1766320241910,-209.6,0.0001591,2]
[399367854,1766320241919,-150.0,0.00015911,2]
[399367855,1766320241928,-150.0,0.00015925,2]
[399367856,1766320241942,-1600.0,0.00015928,2]
[399367857,1766320241951,-227.6,0.00015938,2]
[399367858,1766320241960,-150.0,0.00015957,2]
[399367859,1766320241969,-150.0,0.00015967,2]
[399367860,1766320241978,-150.0,0.00015967,2]
[399367861,1766320241987,-150.0,0.00015967,2]
[399367862,1766320241996,-150.0,0.00015967,2]
[399367863,1766320242006,-502.52786195,0.00015973,2]
[399367864,1766320242015,-500.0,0.00015973,2]
[399367865,1766320242024,-500.0,0.00015973,2]
[399367866,1766320242034,-500.0,0.00015973,2]
[399367867,1766320242043,-500.0,0.00015973,2]
[399367868,1766320242052,-500.0,0.00015973,2]
[399367869,1766320242062,-226.54246888,0.00015973,2]
[399367870,1766320242071,-500.0,0.00015973,2]
[399367871,1766320242080,-500.0,0.00015973,2]
[399367872,1766320242089,-500.0,0.00015973,2]
[399367873,1766320242099,-175.51314908,0.00015973,2]
[399367874,1766320242108,-500.0,0.00015973,2]
[399367875,1766320242117,-500.0,0.00015973,2]
[399367876,1766320242126,-500.0,0.00015973,2]
[399367877,1766320242136,-160.18740865,0.00015973,2]
[399367878,1766320242145,-500.0,0.00015973,2]
[399367879,1766320242154,-452.23233136,0.00015973,2]
[399367880,1766320242163,-500.0,0.00015973,2]
[399367881,1766320242173,-635.83054763,0.00015973,2]
[399367882,1766320242182,-500.0,0.00015973,2]
[399367883,1766320242191,-500.0,0.00015973,2]
[399367884,1766320242200,-500.0,0.00015973,2]
[399367885,1766320242209,-500.0,0.00015973,2]
[399367886,1766320242218,-500.0,0.00015973,2]
[399367887,1766320242227,-500.0,0.00015973,2]
[399367888,1766320242236,-426.64941198,0.00015973,2]
[399367889,1766320242246,-500.0,0.00015973,2]
[399367890,1766320242255,-500.0,0.00015973,2]
[399367891,1766320242265,-500.0,0.00015973,2]
[399367892,1766320242274,-500.0,0.00015973,2]